fUST/lending_fUST_20240824
["ID","MTS","AMOUNT","RATE_DAILY","PERIOD"]
[335781752,1724489442883,-500.0,0.00013698,2]
[335781755,1724489442894,-1756.21,0.00013698,2]
[335781758,1724489442904,-834.69,0.00013698,2]
[335781761,1724489442913,-500.0,0.00013698,2]
[335781764,1724489442922,-318.6461371,0.00013698,2]
[335781767,1724489442932,-500.0,0.00013698,2]
[335781770,1724489442941,-500.0,0.00013698,2]
[335781772,1724489442950,-500.0,0.00013698,2]
[335781774,1724489442960,-509.13136748,0.00013698,2]
[335781776,1724489442970,-500.0,0.00013698,2]
[335781778,1724489442980,-500.0,0.00013698,2]
[335781780,1724489442990,-1162.03,0.00013698,2]
[335781782,1724489443000,-500.0,0.00013698,2]
[335781784,1724489443009,-500.0,0.00013698,2]
[335781786,1724489443019,-799.84,0.00013698,2]
[335781788,1724489443028,-500.0,0.00013698,2]
[335781790,1724489443038,-1043.41,0.00013698,2]
[335781792,1724489443047,-500.0,0.00013698,2]
[335781795,1724489443058,-500.0,0.00013698,2]
[335781797,1724489443068,-428.33560529,0.00013698,2]
[335781799,1724489443077,-500.0,0.00013698,2]
[335781801,1724489443086,-395.55963126,0.00013698,2]
[335781803,1724489443095,-500.0,0.00013698,2]
[335781805,1724489443105,-596.62,0.00013698,2]
[335781807,1724489443114,-500.0,0.00013698,2]
[335781809,1724489443123,-927.31,0.00013698,2]
[335781811,1724489443133,-1311.48,0.00013698,2]
[335781813,1724489443142,-500.0,0.00013698,2]
[335781815,1724489443152,-500.0,0.00013698,2]
[335781817,1724489443161,-500.0,0.00013698,2]
[335781819,1724489443171,-709.01,0.00013698,2]
[335781821,1724489443180,-749.42,0.00013698,2]
[335781823,1724489443189,-500.0,0.00013698,2]
[335781825,1724489443199,-1323.6,0.00013698,2]
[335781827,1724489443208,-500.0,0.00013698,2]
[335781829,1724489443219,-500.0,0.00013698,2]
[335781831,1724489443229,-500.0,0.00013698,2]
[335781833,1724489443240,-800.97,0.00013698,2]
[335781835,1724489443250,-500.0,0.00013698,2]
[335781862,1724489443449,-1346.35,0.00013698,2]
[335781866,1724489443502,-500.0,0.00013698,2]
[335781868,1724489443512,-500.0,0.00013698,2]
[335781870,1724489443521,-500.0,0.00013698,2]
[335781872,1724489443531,-500.0,0.00013698,2]
[335781874,1724489443540,-500.0,0.00013698,2]
[335781875,1724489443550,-757.99,0.00013698,2]
[335781877,1724489443559,-775.35,0.00013698,2]
[335781879,1724489443568,-1002.58,0.00013698,2]
[335781881,1724489443578,-500.0,0.00013698,2]
[335781883,1724489443587,-509.18196234,0.00013698,2]
[335781885,1724489443596,-500.0,0.00013698,2]
[335781887,1724489443606,-1410.4,0.00013698,2]
[335781889,1724489443616,-500.0,0.00013698,2]
[335781891,1724489443626,-500.0,0.00013698,2]
[335781893,1724489443635,-1147.3,0.00013698,2]
[335781895,1724489443645,-500.0,0.00013698,2]
[335781897,1724489443654,-500.0,0.00013698,2]
[335781899,1724489443663,-500.0,0.00013698,2]
[335781901,1724489443672,-500.0,0.00013698,2]
[335781903,1724489443682,-500.0,0.00013698,2]
[335781905,1724489443692,-500.0,0.00013698,2]
[335781907,1724489443701,-239.35549867,0.00013698,2]
[335781909,1724489443710,-500.0,0.00013698,2]
[335781911,1724489443723,-618.27,0.00013698,2]
[335781913,1724489443733,-668.8,0.00013698,2]
[335781915,1724489443742,-549.99,0.00013698,2]
[335781917,1724489443751,-576.04,0.00013698,2]
[335781919,1724489443762,-500.0,0.00013698,2]
[335781920,1724489443771,-521.16073387,0.00013698,2]
[335781922,1724489443781,-892.49,0.00013698,2]
[335781924,1724489443790,-500.0,0.00013698,2]
[335781926,1724489443801,-500.0,0.00013698,2]
[335781928,1724489443812,-500.0,0.00013698,2]
[335781930,1724489443822,-500.0,0.00013698,2]
[335781932,1724489443831,-500.0,0.00013698,2]
[335781934,1724489443841,-652.84,0.00013698,2]
[335781936,1724489443850,-551.53866785,0.00013698,2]
[335781938,1724489443859,-500.0,0.00013698,2]
[335781940,1724489443868,-500.0,0.00013698,2]
[335781942,1724489443877,-718.55,0.00013698,2]
[335781943,1724489443887,-1144.49,0.00013698,2]
[335781945,1724489443896,-500.0,0.00013698,2]
[335781947,1724489443907,-500.0,0.00013698,2]
[335781949,1724489443916,-500.0,0.00013698,2]
[335781951,1724489443926,-500.0,0.00013698,2]
[335781953,1724489443935,-1894.49,0.00013698,2]
[335781955,1724489443945,-1667.35,0.00013698,2]
[335781957,1724489443956,-500.0,0.00013698,2]
[335781960,1724489443966,-500.0,0.00013698,2]
[335781961,1724489443976,-500.0,0.00013698,2]
[335781963,1724489443994,-500.0,0.00013698,2]
[335781965,1724489444004,-501.5733447,0.00013698,2]
[335781967,1724489444014,-500.0,0.00013698,2]
[335781969,1724489444024,-1373.81,0.00013698,2]
[335781971,1724489444033,-520.86,0.00013698,2]
[335781973,1724489444043,-430.44001007,0.00013698,2]
[335781975,1724489444052,-500.0,0.00013698,2]
[335781977,1724489444061,-500.0,0.00013698,2]
[335781979,1724489444070,-500.0,0.00013698,2]
[335781981,1724489444080,-500.0,0.00013698,2]
[335781983,1724489444089,-500.0,0.00013698,2]
[335781985,1724489444098,-500.0,0.00013698,2]
[335781987,1724489444107,-500.0,0.00013698,2]
[335781989,1724489444116,-653.47,0.00013698,2]
[335781991,1724489444126,-500.0,0.00013698,2]
[335781993,1724489444135,-500.0,0.00013698,2]
[335781995,1724489444145,-500.0,0.00013698,2]
[335781997,1724489444155,-511.84,0.00013698,2]
[335781999,1724489444164,-1706.35,0.00013698,2]
[335782001,1724489444173,-500.0,0.00013698,2]
[335782003,1724489444182,-500.0,0.00013698,2]
[335782005,1724489444192,-500.0,0.00013698,2]
[335782006,1724489444201,-500.0,0.00013698,2]
[335782007,1724489444210,-534.8,0.00013698,2]
[335782009,1724489444220,-500.0,0.00013698,2]
[335782012,1724489444235,-668.6,0.00013698,2]
[335782014,1724489444245,-579.76,0.00013698,2]
[335782016,1724489444256,-873.9,0.00013698,2]
[335782018,1724489444266,-519.18,0.00013698,2]
[335782020,1724489444275,-245.18062612,0.00013698,2]
[335782022,1724489444284,-867.31,0.00013698,2]
[335782024,1724489444293,-500.0,0.00013698,2]
[335782026,1724489444302,-500.0,0.00013698,2]
[335782028,1724489444313,-500.0,0.00013698,2]
[335782030,1724489444323,-798.03,0.00013698,2]
[335782032,1724489444334,-500.0,0.00013698,2]
[335782034,1724489444345,-500.0,0.00013698,2]
[335782036,1724489444355,-500.0,0.00013698,2]
[335782038,1724489444365,-532.83,0.00013698,2]
[335782040,1724489444374,-500.0,0.00013698,2]
[335782042,1724489444385,-500.0,0.00013698,2]
[335782044,1724489444395,-1144.81,0.00013698,2]
[335782047,1724489444406,-500.0,0.00013698,2]
[335782049,1724489444416,-948.51,0.00013698,2]
[335782051,1724489444425,-500.0,0.00013698,2]
[335782053,1724489444434,-254.16034572,0.00013698,2]
[335782054,1724489444443,-500.0,0.00013698,2]
[335782056,1724489444453,-500.0,0.00013698,2]
[335782058,1724489444462,-500.0,0.00013698,2]
[335782061,1724489444472,-500.0,0.00013698,2]
[335782062,1724489444484,-500.0,0.00013698,2]
[335782065,1724489444494,-612.73,0.00013698,2]
[335782066,1724489444503,-500.0,0.00013698,2]
[335782068,1724489444513,-827.46,0.00013698,2]
[335782070,1724489444522,-343.97804973,0.00013698,2]
[335782072,1724489444532,-500.0,0.00013698,2]
[335782074,1724489444541,-642.7,0.00013698,2]
[335782076,1724489444550,-961.07,0.00013698,2]
[335782078,1724489444561,-961.07,0.00013698,2]
[335782080,1724489444570,-961.07,0.00013698,2]
[335782082,1724489444579,-961.07,0.00013698,2]
[335782084,1724489444588,-961.07,0.00013698,2]
[335782086,1724489444598,-961.07,0.00013698,2]
[335782088,1724489444607,-961.07,0.00013698,2]
[335782091,1724489444616,-961.07,0.00013698,2]
[335782093,1724489444627,-961.07,0.00013698,2]
[335782095,1724489444637,-961.07,0.00013698,2]
[335782097,1724489444648,-961.07,0.00013698,2]
[335782099,1724489444658,-961.07,0.00013698,2]
[335782101,1724489444667,-961.07,0.00013698,2]
[335782103,1724489444676,-961.07,0.00013698,2]
[335782105,1724489444686,-961.07,0.00013698,2]
[335782107,1724489444695,-500.0,0.00013698,2]
[335782109,1724489444704,-961.07,0.00013698,2]
[335782111,1724489444720,-961.07,0.00013698,2]
[335782113,1724489444734,-961.07,0.00013698,2]
[335782115,1724489444744,-961.07,0.00013698,2]
[335782117,1724489444755,-476.61024036,0.00013698,2]
[335782120,1724489444767,-150.0,0.00013698,2]
[335782121,1724489444777,-500.0,0.00013698,2]
[335782124,1724489444786,-1381.3,0.00013698,2]
[335782125,1724489444797,-6034.41,0.00013698,2]
[335782127,1724489444806,-1381.3,0.00013698,2]
[335782129,1724489444815,-1381.3,0.00013698,2]
[335782131,1724489444825,-1381.3,0.00013698,2]
[335782133,1724489444834,-500.0,0.00013698,2]
[335782135,1724489444843,-1381.3,0.00013698,2]
[335782136,1724489444853,-500.0,0.00013698,2]
[335782138,1724489444862,-1381.3,0.00013698,2]
[335782139,1724489444872,-1381.3,0.00013698,2]
[335782140,1724489444882,-1381.3,0.00013698,2]
[335782141,1724489444892,-500.0,0.00013698,2]
[335782142,1724489444901,-1381.3,0.00013698,2]
[335782143,1724489444910,-1381.3,0.00013698,2]
[335782144,1724489444920,-1381.3,0.00013698,2]
[335782145,1724489444930,-1381.3,0.00013698,2]
[335782146,1724489444939,-1188.17,0.00013698,2]
[335782147,1724489444948,-1381.3,0.00013698,2]
[335782148,1724489444958,-500.0,0.00013698,2]
[335782149,1724489444967,-1381.3,0.00013698,2]
[335782150,1724489444978,-1381.3,0.00013698,2]
[335782151,1724489444987,-1381.3,0.00013698,2]
[335782152,1724489444997,-1381.3,0.00013698,2]
[335782153,1724489445006,-1381.3,0.00013698,2]
[335782154,1724489445015,-500.0,0.00013698,2]
[335782155,1724489445025,-3732.43,0.00013698,2]
[335782156,1724489445034,-500.0,0.00013698,2]
[335782157,1724489445043,-500.0,0.00013698,2]
[335782158,1724489445053,-564.06,0.00013698,2]
[335782159,1724489445063,-490.00940042,0.00013698,2]
[335782160,1724489445096,-1435.14059958,0.00013698,2]
[335782161,1724489445106,-728.01027741,0.00013698,2]
[335782162,1724489445117,-2974.12972259,0.00013698,2]
[335782163,1724489445126,-500.0,0.00013698,2]
[335782164,1724489445136,-500.0,0.00013698,2]
[335782165,1724489445145,-500.0,0.00013698,2]
[335782166,1724489445155,-991.83,0.00013698,2]
[335782167,1724489445164,-585.33,0.00013698,2]
[335782168,1724489445173,-933.54,0.00013698,2]
[335782169,1724489445183,-500.0,0.00013698,2]
[335782170,1724489445192,-780.03,0.00013698,2]
[335782171,1724489445203,-500.0,0.00013698,2]
[335782172,1724489445213,-500.0,0.00013698,2]
[335782173,1724489445222,-1018.14,0.00013698,2]
[335782174,1724489445231,-132.6684412,0.00013698,2]
[335782175,1724489445243,-2316.7215588,0.00013698,2]
[335782176,1724489445253,-500.0,0.00013698,2]
[335782177,1724489445262,-500.0,0.00013698,2]
[335782178,1724489445272,-1195.65,0.00013698,2]
[335782179,1724489445281,-500.0,0.00013698,2]
[335782180,1724489445291,-7191.4884412,0.00013698,2]
[335782188,1724489445858,-5477.8115588,0.00013698,2]
[335782190,1724489445868,-521.09788376,0.00013698,2]
[335782192,1724489445877,-919.42,0.00013698,2]
[335782193,1724489445887,-1264.84,0.00013698,2]
[335782194,1724489445897,-500.0,0.00013698,2]
[335782195,1724489445907,-500.0,0.00013698,2]
[335782197,1724489445917,-500.0,0.00013698,2]
[335782198,1724489445927,-500.0,0.00013698,2]
[335782199,1724489445938,-500.0,0.00013698,2]
[335782200,1724489445948,-500.0,0.00013698,2]
[335782201,1724489445958,-500.0,0.00013698,2]
[335782202,1724489445969,-500.0,0.00013698,2]
[335782204,1724489445980,-500.0,0.00013698,2]
[335782206,1724489445989,-500.0,0.00013698,2]
[335782208,1724489445999,-500.0,0.00013698,2]
[335782209,1724489446008,-819.5,0.00013698,2]
[335782210,1724489446018,-500.0,0.00013698,2]
[335782211,1724489446027,-682.97,0.00013698,2]
[335782213,1724489446037,-669.84,0.00013698,2]
[335782214,1724489446047,-663.69,0.00013698,2]
[335782215,1724489446056,-1973.55,0.00013698,2]
[335782216,1724489446066,-6306.52,0.00013698,2]
[335782217,1724489446076,-500.0,0.00013698,2]
[335782218,1724489446085,-812.79,0.00013698,2]
[335782219,1724489446094,-3423.31,0.00013698,2]
[335782220,1724489446104,-500.0,0.00013698,2]
[335782221,1724489446113,-500.0,0.00013698,2]
[335782222,1724489446122,-500.0,0.00013698,2]
[335782223,1724489446131,-500.0,0.00013698,2]
[335782224,1724489446141,-500.0,0.00013698,2]
[335782225,1724489446150,-500.0,0.00013698,2]
[335782226,1724489446159,-594.18,0.00013698,2]
[335782227,1724489446169,-611.61745047,0.00013698,2]
[335782228,1724489446177,-500.0,0.00013698,2]
[335782229,1724489446186,-500.0,0.00013698,2]
[335782230,1724489446195,-504.03413542,0.00013698,2]
[335782231,1724489446205,-1129.0,0.00013698,2]
[335782232,1724489446214,-519.3117229,0.00013698,2]
[335782233,1724489446224,-1510.59,0.00013698,2]
[335782234,1724489446233,-500.37530072,0.00013698,2]
[335782235,1724489446242,-902.33,0.00013698,2]
[335782236,1724489446252,-671.95,0.00013698,2]
[335782237,1724489446261,-500.0,0.00013698,2]
[335782238,1724489446270,-10551.29,0.00013698,2]
[335782239,1724489446279,-921.61,0.00013698,2]
[335782240,1724489446288,-500.0,0.00013698,2]
[335782241,1724489446297,-748.52,0.00013698,2]
[335782242,1724489446307,-610.81143768,0.00013698,2]
[335782243,1724489446316,-500.0,0.00013698,2]
[335782244,1724489446325,-946.24,0.00013698,2]
[335782245,1724489446335,-8398.52,0.00013698,2]
[335782246,1724489446344,-643.98,0.00013698,2]
[335782247,1724489446353,-500.0,0.00013698,2]
[335782248,1724489446362,-659.92,0.00013698,2]
[335782249,1724489446371,-504.9817126,0.00013698,2]
[335782250,1724489446380,-596.69,0.00013698,2]
[335782251,1724489446390,-500.0,0.00013698,2]
[335782252,1724489446399,-500.0,0.00013698,2]
[335782253,1724489446408,-500.0,0.00013698,2]
[335782254,1724489446417,-500.0,0.00013698,2]
[335782255,1724489446426,-500.0,0.00013698,2]
[335782256,1724489446435,-500.0,0.00013698,2]
[335782257,1724489446445,-500.0,0.00013698,2]
[335782258,1724489446454,-500.0,0.00013698,2]
[335782259,1724489446464,-2179.59,0.00013698,2]
[335782260,1724489446473,-503.35788423,0.00013698,2]
[335782261,1724489446484,-500.0,0.00013698,2]
[335782262,1724489446493,-2255.39,0.00013698,2]
[335782263,1724489446503,-796.26,0.00013698,2]
[335782264,1724489446513,-500.0,0.00013698,2]
[335782265,1724489446522,-500.0,0.00013698,2]
[335782266,1724489446531,-500.0,0.00013698,2]
[335782267,1724489446541,-500.0,0.00013698,2]
[335782268,1724489446550,-500.0,0.00013698,2]
[335782269,1724489446560,-491.82331326,0.00013698,2]
[335782270,1724489446569,-500.0,0.00013698,2]
[335782271,1724489446578,-511.03395608,0.00013698,2]
[335782272,1724489446588,-17.45153704,0.00013698,2]
[335782273,1724489447138,-482.54846296,0.00013698,2]
[335782274,1724489447147,-5554.39,0.00013698,2]
[335782275,1724489447156,-1435.64,0.00013698,2]
[335782276,1724489447165,-750.69,0.00013698,2]
[335782277,1724489447177,-500.80362181,0.00013698,2]
[335782278,1724489447187,-500.0,0.00013698,2]
[335782279,1724489447196,-500.0,0.00013698,2]
[335782280,1724489447206,-868.78,0.00013698,2]
[335782281,1724489447215,-500.0,0.00013698,2]
[335782282,1724489447225,-3389.13,0.00013698,2]
[335782283,1724489447234,-588.41,0.00013698,2]
[335782284,1724489447243,-505.22,0.00013698,2]
[335782285,1724489447252,-500.42,0.00013698,2]
[335782286,1724489447262,-1185.41014018,0.00013698,2]
[335782287,1724489447274,-1136.42985982,0.00013698,2]
[335782288,1724489447284,-500.0,0.00013698,2]
[335782289,1724489447447,-500.0,0.00013698,2]
[335782290,1724489447489,-500.0,0.00013698,2]
[335782291,1724489447498,-500.0,0.00013698,2]
[335782292,1724489447508,-500.0,0.00013698,2]
[335782293,1724489447518,-918.89,0.00013698,2]
[335782294,1724489447527,-500.0,0.00013698,2]
[335782295,1724489447537,-244.68014018,0.00013698,2]
[335782297,1724489518462,323.12,0.00010959,2]
[335782302,1724489583416,154.76012181,0.00010959,2]
[335782304,1724489613014,395.21,0.00027,120]
[335782305,1724489627437,150.0,0.00012111,2]
[335782313,1724490004449,664.09200604,0.00012111,2]
[335782317,1724490135890,1000.0,0.00027,120]
[335782334,1724490349133,-300.0,0.00012196,2]
[335782335,1724490349159,-13.30388337,0.00012197,2]
[335782337,1724490442150,-300.0,0.00012196,2]
[335782338,1724490442173,-862.06162859,0.00012197,2]
[335782340,1724490453526,-12055.69291454,0.00012197,2]
[335782341,1724490453549,-1714.21571777,0.00012356,2]
[335782346,1724490545117,-9664.212107,0.0001212,2]
[335782347,1724490545139,-300.0,0.00012162,2]
[335782348,1724490545919,729.00961912,0.0001212,2]
[335782358,1724490548551,2282.92421799,0.00012516,3]
[335782359,1724490559099,-1718.57832739,0.00012629,2]
[335782360,1724490559120,-2141.83182523,0.00012782,2]
[335782369,1724490601925,817.95411776,0.00012782,2]
[335782371,1724490622700,934.23595312,0.00012063,2]
[335782462,1724490638537,-796.470594,0.00012877,2]
[335782464,1724490638548,-117.32085982,0.00012886,2]
[335782467,1724490638562,-71.02780904,0.00012886,2]
[335782469,1724490638572,-933.89722372,0.00012898,2]
[335782471,1724490638582,-1023.33199145,0.00012898,2]
[335782473,1724490638591,-780.88884995,0.00012934,2]
[335782475,1724490638601,-216.4705467,0.00012934,2]
[335782477,1724490638610,-372.93180279,0.00012934,2]
[335782479,1724490638619,-300.0,0.0001297,2]
[335782481,1724490638629,-210.23989812,0.00012971,2]
[335782483,1724490638639,-409.212231,0.00012978,2]
[335782485,1724490638649,-422.1184028,0.00012999,2]
[335782487,1724490638658,-207.7300879,0.00013,2]
[335782489,1724490638667,-409.212231,0.00013,2]
[335782490,1724490638677,-154.71377951,0.00013051,2]
[335782491,1724490638686,-407.42081908,0.00013051,2]
[335782492,1724490638696,-153.0,0.00013078,2]
[335782495,1724490638705,-207.7300879,0.00013078,2]
[335782497,1724490638715,-207.3622551,0.00013178,2]
[335782499,1724490638724,-409.212231,0.00013178,2]
[335782501,1724490638734,-409.212231,0.00013313,2]
[335782503,1724490638744,-409.212231,0.00013313,2]
[335782505,1724490638753,-409.212231,0.00013313,2]
[335782507,1724490638762,-818.337051,0.00013313,2]
[335782509,1724490638772,-5720.57521366,0.00013458,2]
[335782511,1724490638781,-154.71377951,0.00013496,2]
[335782513,1724490638790,-22778.31237427,0.00013497,2]
[335782548,1724490639165,-16283.83468901,0.00013497,2]
[335782549,1724490639176,-11894.16804779,0.00013498,2]
[335782550,1724490639188,-409.2733729,0.000135,2]
[335782551,1724490639197,-76440.65682295,0.00013588,2]
[335782552,1724490639206,-306.47265928,0.00013597,2]
[335782553,1724490639216,-500.0,0.000136,2]
[335782554,1724490639225,-500.0,0.000136,2]
[335782555,1724490639236,-500.0,0.000136,2]
[335782556,1724490639247,-500.0,0.000136,2]
[335782557,1724490639258,-500.0,0.000136,2]
[335782558,1724490639272,-500.0,0.000136,2]
[335782559,1724490639282,-500.0,0.000136,2]
[335782560,1724490639291,-500.0,0.000136,2]
[335782561,1724490639301,-500.0,0.000136,2]
[335782563,1724490639310,-500.0,0.000136,2]
[335782564,1724490639320,-500.0,0.000136,2]
[335782566,1724490639329,-500.0,0.000136,2]
[335782567,1724490639339,-500.0,0.000136,2]
[335782568,1724490639348,-354.74330037,0.000136,2]
[335782569,1724490639357,-278529.695947,0.00013672,2]
[335782570,1724490639367,-155.0,0.00013673,2]
[335782571,1724490639376,-500.0,0.00013673,2]
[335782572,1724490639386,-500.0,0.00013673,2]
[335782573,1724490639395,-170.27890073,0.00013673,2]
[335782574,1724490639404,-500.0,0.00013673,2]
[335782575,1724490639413,-500.0,0.00013673,2]
[335782576,1724490639422,-600.0,0.00013676,2]
[335782577,1724490639431,-712284.341692,0.00013688,2]
[335782578,1724490639440,-7011.29579993,0.00013697,2]
[335782579,1724490639450,-500.0,0.00013698,2]
[335782580,1724490639459,-309.19786618,0.00013698,2]
[335782581,1724490639468,-417.44368958,0.00013698,2]
[335782582,1724490639478,-500.0,0.00013698,2]
[335782583,1724490639487,-500.0,0.00013698,2]
[335782584,1724490639496,-267.44368958,0.00013698,2]
[335782585,1724490639506,-722.45,0.00013698,2]
[335782586,1724490639515,-562.94,0.00013698,2]
[335782587,1724490639524,-500.0,0.00013698,2]
[335782588,1724490639533,-500.0,0.00013698,2]
[335782589,1724490639542,-500.0,0.00013698,2]
[335782590,1724490639747,-500.0,0.00013698,2]
[335782591,1724490639757,-500.0,0.00013698,2]
[335782592,1724490639766,-737.28,0.00013698,2]
[335782593,1724490639775,-500.0,0.00013698,2]
[335782594,1724490639785,-573.73,0.00013698,2]
[335782595,1724490639795,-502.86105163,0.00013698,2]
[335782596,1724490639805,-704.43,0.00013698,2]
[335782597,1724490639815,-538.39,0.00013698,2]
[335782598,1724490639824,-503.69866884,0.00013698,2]
[335782599,1724490639834,-500.0,0.00013698,2]
[335782600,1724490639844,-500.0,0.00013698,2]
[335782602,1724490639854,-790.7,0.00013698,2]
[335782603,1724490639862,-775.34,0.00013698,2]
[335782604,1724490639872,-500.0,0.00013698,2]
[335782605,1724490639881,-500.0,0.00013698,2]
[335782606,1724490639898,-577.8,0.00013698,2]
[335782607,1724490639908,-172.28829552,0.00013698,2]
[335782608,1724490639918,-500.0,0.00013698,2]
[335782609,1724490639927,-500.0,0.00013698,2]
[335782610,1724490639938,-500.0,0.00013698,2]
[335782611,1724490639947,-500.0,0.00013698,2]
[335782612,1724490639957,-500.0,0.00013698,2]
[335782613,1724490639966,-500.0,0.00013698,2]
[335782614,1724490639976,-500.0,0.00013698,2]
[335782615,1724490639986,-500.0,0.00013698,2]
[335782616,1724490639996,-500.0,0.00013698,2]
[335782617,1724490640005,-500.0,0.00013698,2]
[335782618,1724490640015,-500.0,0.00013698,2]
[335782619,1724490640025,-655.44,0.00013698,2]
[335782620,1724490640034,-568.05,0.00013698,2]
[335782621,1724490640044,-502.9669734,0.00013698,2]
[335782622,1724490640054,-285.92282374,0.00013698,2]
[335782623,1724490640063,-642.54,0.00013698,2]
[335782625,1724490640073,-500.0,0.00013698,2]
[335782627,1724490640082,-500.0,0.00013698,2]
[335782628,1724490640091,-267.44368958,0.00013698,2]
[335782629,1724490640100,-501.38933766,0.00013698,2]
[335782630,1724490640109,-518.77,0.00013698,2]
[335782631,1724490640119,-500.0,0.00013698,2]
[335782632,1724490640128,-500.0,0.00013698,2]
[335782633,1724490640138,-500.0,0.00013698,2]
[335782634,1724490640147,-503.11997067,0.00013698,2]
[335782635,1724490640157,-500.0,0.00013698,2]
[335782636,1724490640166,-500.0,0.00013698,2]
[335782637,1724490640175,-500.0,0.00013698,2]
[335782638,1724490640185,-500.0,0.00013698,2]
[335782641,1724490640198,-500.0,0.00013698,2]
[335782643,1724490640207,-522.44,0.00013698,2]
[335782645,1724490640216,-500.0,0.00013698,2]
[335782647,1724490640226,-2069.3,0.00013698,2]
[335782648,1724490640237,-500.0,0.00013698,2]
[335782650,1724490640247,-500.0,0.00013698,2]
[335782653,1724490640257,-500.0,0.00013698,2]
[335782654,1724490640266,-500.0,0.00013698,2]
[335782656,1724490640275,-500.0,0.00013698,2]
[335782659,1724490640285,-643.50200613,0.00013698,2]
[335782660,1724490640293,-500.0,0.00013698,2]
[335782662,1724490640303,-500.0,0.00013698,2]
[335782664,1724490640312,-500.0,0.00013698,2]
[335782666,1724490640322,-500.0,0.00013698,2]
[335782669,1724490640331,-500.0,0.00013698,2]
[335782671,1724490640341,-500.0,0.00013698,2]
[335782673,1724490640350,-500.0,0.00013698,2]
[335782675,1724490640361,-500.0,0.00013698,2]
[335782677,1724490640371,-500.0,0.00013698,2]
[335782679,1724490640380,-501.67479403,0.00013698,2]
[335782681,1724490640390,-500.0,0.00013698,2]
[335782683,1724490640401,-416.90936469,0.00013698,2]
[335782685,1724490640412,-500.0,0.00013698,2]
[335782687,1724490640421,-500.56863178,0.00013698,2]
[335782690,1724490640432,-500.0,0.00013698,2]
[335782692,1724490640442,-500.0,0.00013698,2]
[335782694,1724490640451,-500.0,0.00013698,2]
[335782696,1724490640461,-500.0,0.00013698,2]
[335782698,1724490640470,-500.0,0.00013698,2]
[335782700,1724490640479,-500.0,0.00013698,2]
[335782702,1724490640489,-500.0,0.00013698,2]
[335782704,1724490640498,-500.0,0.00013698,2]
[335782706,1724490640507,-500.0,0.00013698,2]
[335782708,1724490640516,-500.0,0.00013698,2]
[335782710,1724490640525,-500.0,0.00013698,2]
[335782712,1724490640535,-500.0,0.00013698,2]
[335782714,1724490640544,-193.80537047,0.00013698,2]
[335782716,1724490640554,-500.0,0.00013698,2]
[335782718,1724490640563,-500.0,0.00013698,2]
[335782720,1724490640572,-500.0,0.00013698,2]
[335782722,1724490640581,-500.0,0.00013698,2]
[335782724,1724490640591,-751.18,0.00013698,2]
[335782726,1724490640602,-500.0,0.00013698,2]
[335782728,1724490640612,-500.0,0.00013698,2]
[335782731,1724490640622,-500.0,0.00013698,2]